[Event "FRA-ch Youth 2017"]
[Site "Belfort"]
[Date "2017.04.17"]
[Round "2"]
[White "Ider, Jargalan"]
[Black "Bellahcene, Meriem"]
[Result "0-1"]
[ECO "D30"]
[WhiteElo "1559"]
[BlackElo "1919"]
[Annotator "NA RC"]
[PlyCount "103"]
[EventDate "2017.??.??"]
[EventCountry "FRA"]
[SourceTitle "playchess.com"]
[Source "ChessBase"]
[SourceQuality "1"]
[TimeControl "5400+30"]

1. d4 {[%emt 0:01:35]} d5 {[%emt 0:00:21]} 2. c4 {[%emt 0:00:31]} e6 {[%emt 0:00:27]} 3. g3 {[%emt 0:00:19]} c6 {[%emt 0:00:29]} 4. Bg2 {[%emt 0:00:13]} Nf6 {[%emt 0:00:32]} 5. Nf3 {[%emt 0:00:47]} Nbd7 {[%emt 0:00:28]} 6. Nc3 {[%emt 0:01:21]} Be7 {[%emt 0:01:02]} 7. O-O {[%emt 0:01:19]} O-O {[%emt 0:00:57]} 8. Qc2 {[%emt 0:04:25]} b6 {[%emt 0:09:08]} 9. cxd5 {[%emt 0:37:22]} exd5 {[%emt 0:07:50] E07: Closed Catalan: Main Line (5 Nf3 0-0 6 0-0 Nbd7)} (9... cxd5 10. Bf4 a6 11. Rac1 Bb7 12. a4 Rc8 13. Qb3 Rc4 14. Na2 Rxc1 15. Rxc1 Qa8 16. Ne5 Rc8 17. Bg5 Rxc1+ 18. Nxc1 {1-0 (58) Lajthajm,B (2477)-Skare,G (2279) Belgrade 2011}) 10. e4 {[%emt 0:01:47]} dxe4 {[%emt 0:02:49]} 11. Nxe4 {[%emt 0:00:12]} Bb7 {[%emt 0:00:49]} 12. Ne5 $146 {[%emt 0:04:09]} (12. Rd1 Re8 13. Ne5 Nxe4 14. Bxe4 Nxe5 15. dxe5 Qc7 16. Bxh7+ Kh8 17. Bf4 {1-0 (48) Hernandez,A-Tommasini,E (2154) Kaunas 2011}) 12... Nxe5 {[%emt 0:16:14]} 13. dxe5 {[%emt 0:00:11]} Nd5 {[%emt 0:17:05]} 14. b3 {[%emt 0:05:58]} Nb4 {[%emt 0:03:33]} 15. Qc3 {[%emt 0:06:57]} Ba6 {[%emt 0:05:34]} 16. Re1 {[%emt 0:04:01]} Qd3 {[%emt 0:02:28]} 17. Ba3 {[%emt 0:08:08]} Qxc3 $1 {[%emt 0:04:40]} 18. Nxc3 {[%emt 0:00:11]} Rac8 {[%emt 0:00:34]} 19. Rad1 {[%emt 0:05:32]} Rfe8 {[%emt 0:02:17]} 20. Bxb4 {[%emt 0:06:05]} Bxb4 {[%emt 0:00:04]} 21. Re3 {[%emt 0:00:25]} h6 {[%emt 0:03:11]} 22. Bf1 {[%emt 0:00:50]} Bxf1 {[%emt 0:01:11]} 23. Kxf1 {[%emt 0:00:05]} Rcd8 {[%emt 0:03:03]} 24. Rxd8 {[%emt 0:01:29]} Rxd8 {[%emt 0:00:04]} 25. Ke2 {[%emt 0:00:36]} Bc5 {[%emt 0:03:31]} 26. Rf3 {[%emt 0:02:53]} Re8 {[%emt 0:01:37]} 27. Rd3 {[%emt 0:03:22]} Rxe5+ {[%emt 0:00:30]} 28. Kf1 {[%emt 0:00:32]} g5 {[%emt 0:03:03]} 29. Rd7 {[%emt 0:00:34]} a5 {[%emt 0:00:43]} 30. Rc7 {[%emt 0:01:13]} Re6 {[%emt 0:00:30]} 31. Na4 {[%emt 0:00:26]} Bd4 {[%emt 0:00:55]} 32. Rd7 {[%emt 0:01:12]} c5 {[%emt 0:01:10]} 33. Rb7 {[%emt 0:00:37]} Rf6 $17 {[%emt 0:00:20]} 34. h3 {[%emt 0:00:35]} Rxf2+ {[%emt 0:00:30]} 35. Ke1 {[%emt 0:00:08]} Rxa2 {[%emt 0:02:17]} 36. Nxb6 {[%emt 0:00:20]} Bf2+ {[%emt 0:00:43]} 37. Kf1 {[%emt 0:00:35]} Bxg3 {[%emt 0:00:26]} 38. Nc4 {[%emt 0:00:30]} a4 {[%emt 0:02:14]} 39. bxa4 {[%emt 0:00:12]} Rxa4 {[%emt 0:00:11]} 40. Nd2 {[%emt 0:00:27]} Bf4 {[%emt 0:01:21]} 41. Nb3 {[%emt 0:00:43]} c4 {[%emt 0:01:03]} 42. Nc5 {[%emt 0:00:50]} Ra2 {[%emt 0:01:01]} 43. Ne4 {[%emt 0:00:25]} Ra3 {[%emt 0:01:59]} 44. Nf6+ {[%emt 0:01:01]} Kg7 {[%emt 0:00:10]} 45. Nh5+ {[%emt 0:00:44]} Kg6 {[%emt 0:00:16]} 46. Nxf4+ {[%emt 0:00:05]} gxf4 {[%emt 0:00:05]} 47. Kg2 {[%emt 0:00:26]} Rg3+ {[%emt 0:00:39]} 48. Kh2 {[%emt 0:00:11]} c3 {[%emt 0:00:24]} 49. Rc7 {[%emt 0:00:06]} h5 {[%emt 0:00:38]} 50. h4 {[%emt 0:00:28]} Rd3 {[%emt 0:00:45]} 51. Rc4 {[%emt 0:00:44]} Kf5 {[%emt 0:00:34]} 52. Kg2 {[%emt 0:00:12]} 0-1

[Event "FRA-ch Youth 2017"]
[Site "Belfort"]
[Date "2017.04.17"]
[Round "2"]
[White "Herreman-Boutot, Louise"]
[Black "Djidjeli, Sarah"]
[Result "0-1"]
[ECO "B22"]
[WhiteElo "1472"]
[BlackElo "1934"]
[Annotator "NA RC"]
[PlyCount "52"]
[EventDate "2017.??.??"]
[EventCountry "FRA"]
[SourceTitle "playchess.com"]
[Source "ChessBase"]
[SourceQuality "1"]
[TimeControl "5400+30"]

1. e4 c5 {[%emt 0:26:56]} 2. c3 d5 {[%emt 0:00:30]} 3. exd5 Qxd5 {[%emt 0:00:30]} 4. d4 Nc6 {[%emt 0:00:30]} 5. Nf3 Bf5 {[%emt 0:00:30] B22: Sicilian: 2 c3} 6. Bd3 (6. Be3 Nf6 7. Qb3 cxd4 8. Nxd4 Nxd4 9. Bxd4 a6 10. Nd2 e6 11. Be2 O-O-O 12. Nc4 Bc5 13. O-O Be4 14. Rfd1 {1-0 (32) Jones,G (2676)-Pichot,A (2556) Sharjah 2017}) 6... Bxd3 {[%emt 0:00:30]} 7. Qxd3 O-O-O {[%emt 0:00:30]} 8. Be3 $146 (8. O-O cxd4 9. cxd4 Nxd4 10. Nxd4 Qxd4 11. Qc2+ Kb8 12. Be3 Qb4 13. Rc1 {1-0 (24) Belo,M (1850)-Rego,P (2245) Lisbon 2013}) 8... c4 {[%emt 0:00:30]} 9. Qc2 {[%emt 0:24:48]} Nf6 {[%emt 0:00:30]} 10. Nbd2 {[%emt 0:00:30]} Nd7 {[%emt 0:00:30]} 11. b4 {[%emt 0:00:30]} ({Better is} 11. O-O) 11... e5 {[%emt 0:00:30]} (11... h6 $14) 12. Qe4 {[%emt 0:00:30]} Qxe4 {[%emt 0:00:30]} 13. Nxe4 {[%emt 0:00:30]} exd4 {[%emt 0:00:30]} 14. Nxd4 {[%emt 0:18:22]} Nxd4 {[%emt 0:10:23]} 15. Bxd4 {[%emt 0:00:44]} (15. cxd4 $142 Bxb4+ 16. Ke2) 15... Re8 {[%emt 0:00:10]} 16. f3 {[%emt 0:04:11]} f5 {[%emt 0:00:16]} 17. O-O {[%emt 0:00:14]} fxe4 {[%emt 0:00:14]} 18. Rae1 {[%emt 0:00:54]} e3 {[%emt 0:01:29]} 19. Bxe3 {[%emt 0:02:14]} Bd6 {[%emt 0:00:19]} 20. f4 {[%emt 0:03:38]} Rhf8 {[%emt 0:02:54]} 21. g3 {[%emt 0:02:33]} Bc7 {[%emt 0:01:49]} 22. Kg2 {[%emt 0:06:07]} Bb6 {[%emt 0:01:19]} 23. Rf3 $19 {[%emt 0:03:20]} Nf6 {[%emt 0:01:28]} 24. Bc5 {[%emt 0:06:27]} Bxc5 {[%emt 0:02:14]} 25. Rxe8+ {[%emt 0:00:06]} Rxe8 {[%emt 0:00:07]} 26. bxc5 {[%emt 0:00:05]} Re2+ {[%emt 0:00:18]} 0-1

[Event "FRA-ch Youth 2017"]
[Site "Belfort"]
[Date "2017.04.17"]
[Round "2"]
[White "Martignoni, Margaux"]
[Black "Gospodaru, Teodora"]
[Result "0-1"]
[ECO "B24"]
[WhiteElo "1439"]
[BlackElo "1827"]
[Annotator "NA RC"]
[PlyCount "104"]
[EventDate "2017.??.??"]
[EventCountry "FRA"]
[SourceTitle "playchess.com"]
[Source "ChessBase"]
[SourceQuality "1"]
[TimeControl "5400+30"]

1. e4 {[%emt 0:00:00]} c5 {[%emt 0:00:05]} 2. Nc3 {[%emt 0:00:00]} Nc6 {[%emt 0:00:16]} 3. Bc4 {[%emt 0:00:00]} g6 {[%emt 0:00:14]} 4. f4 {[%emt 0:00:00]} Bg7 {[%emt 0:00:08]} 5. Nf3 {[%emt 0:00:16]} e6 {[%emt 0:00:06]} 6. d3 {[%emt 0:00:41]} Nge7 {[%emt 0:00:08]} 7. O-O {[%emt 0:00:24]} O-O {[%emt 0:00:10]} 8. a3 {[%emt 0:00:50]} d5 {[%emt 0:00:13]} 9. Ba2 {[%emt 0:02:20]} Nd4 {B23: Closed Sicilian: Lines without g3} (9... Rb8 10. Qe1 b5 11. Kh1 Nd4 12. Nxd4 cxd4 13. Ne2 Qc7 14. Bb3 dxe4 15. dxe4 Bb7 16. Ng3 Qc6 17. Qf2 {0-1 (36) Drozdova,D (2258)-Popova,N (2314) Khanty-Mansiysk 2014}) 10. Kh1 {[%emt 0:13:43]} b6 {[%emt 0:04:24]} 11. Nxd4 {[%emt 0:06:27]} cxd4 {[%emt 0:00:26]} 12. Ne2 {[%emt 0:00:43]} dxe4 {[%emt 0:04:34]} 13. dxe4 {[%emt 0:01:57]} Bb7 $146 {[%emt 0:02:29]} 14. Ng3 {[%emt 0:02:36]} Qd7 {[%emt 0:07:21]} 15. Qg4 {[%emt 0:07:47]} f5 {[%emt 0:11:44]} 16. exf5 {[%emt 0:01:59]} Nxf5 {[%emt 0:02:13]} 17. Nxf5 {[%emt 0:00:32]} Rxf5 {[%emt 0:01:47]} (17... gxf5 $17 18. Qe2 Be4) 18. Bd2 {[%emt 0:03:13]} Bd5 {[%emt 0:06:02]} 19. Bxd5 {[%emt 0:04:49]} Qxd5 {[%emt 0:01:20]} 20. Rf3 $17 {[%emt 0:02:48]} (20. Rac1 $15) 20... Raf8 {[%emt 0:05:16]} 21. Raf1 {[%emt 0:06:39]} Qc4 {[%emt 0:05:20]} 22. Rc1 {[%emt 0:02:54]} a5 {[%emt 0:11:01]} 23. h3 {[%emt 0:01:26]} Qe2 {[%emt 0:01:10]} 24. Be1 {[%emt 0:10:35]} e5 {[%emt 0:13:36]} 25. Bg3 {[%emt 0:10:44]} e4 {[%emt 0:05:02]} 26. Rf2 {[%emt 0:03:41]} Qxg4 {[%emt 0:01:07]} 27. hxg4 R5f7 {[%emt 0:01:30]} 28. Re2 {[%emt 0:01:20]} e3 {[%emt 0:01:41]} 29. b4 {[%emt 0:03:02]} Rc8 {[%emt 0:01:41]} 30. c3 {[%emt 0:02:46]} Rxc3 {[%emt 0:01:01]} 31. Rxc3 {[%emt 0:00:22]} dxc3 {[%emt 0:00:06]} 32. Rxe3 {[%emt 0:00:15]} c2 {[%emt 0:00:03]} 33. Re1 {[%emt 0:00:59]} Bb2 {[%emt 0:00:19]} 34. bxa5 {[%emt 0:00:56]} bxa5 {[%emt 0:00:18]} 35. a4 {[%emt 0:00:34]} c1=Q {[%emt 0:00:11]} 36. Rxc1 {[%emt 0:00:10]} Bxc1 {[%emt 0:00:03]} 37. Kg1 {[%emt 0:00:50]} Bxf4 {[%emt 0:00:10]} 38. Bf2 {[%emt 0:00:13]} Bh2+ {[%emt 0:00:24]} 39. Kxh2 {[%emt 0:00:29]} Rxf2 {[%emt 0:00:04]} 40. Kg3 {[%emt 0:00:14]} Ra2 {[%emt 0:00:03]} 41. Kf3 {[%emt 0:00:34]} Rxa4 {[%emt 0:00:05]} 42. g3 {[%emt 0:00:06]} Kf7 {[%emt 0:00:04]} 43. g5 {[%emt 0:01:30]} Rb4 {[%emt 0:00:04]} 44. Ke2 {[%emt 0:00:13]} a4 {[%emt 0:00:05]} 45. Kd2 {[%emt 0:00:10]} a3 {[%emt 0:00:22]} 46. Kc3 {[%emt 0:00:09]} Rb8 {[%emt 0:00:02]} 47. Kc2 {[%emt 0:01:01]} a2 {[%emt 0:00:03]} 48. Kd2 {[%emt 0:00:11]} a1=Q {[%emt 0:00:07]} 49. Kc2 {[%emt 0:00:09]} Qd4 {[%emt 0:00:10]} 50. Kc1 Rc8+ {[%emt 0:00:04]} 51. Kb1 {[%emt 0:00:23]} Qb6+ {[%emt 0:00:05]} 52. Ka2 {[%emt 0:00:06]} Ra8# {[%emt 0:00:02]} 0-1

[Event "FRA-ch Youth 2017"]
[Site "Belfort"]
[Date "2017.04.17"]
[Round "3"]
[White "Viennot, Dylan"]
[Black "Caloone, Thomas"]
[Result "1/2-1/2"]
[ECO "A00"]
[WhiteElo "2263"]
[BlackElo "2149"]
[Annotator "NA"]
[PlyCount "87"]
[EventDate "2017.??.??"]
[EventCountry "FRA"]
[SourceTitle "playchess.com"]
[Source "ChessBase"]
[SourceQuality "1"]
[TimeControl "5400+30"]

1. Nc3 {[%emt 0:00:00]} Nf6 {[%emt 0:03:51]} 2. d4 {[%emt 0:01:09]} d5 {[%emt 0:09:47]} 3. Bf4 {[%emt 0:00:47]} e6 {[%emt 0:04:51]} 4. Qd2 {[%emt 0:00:22]} Bd7 {[%emt 0:02:26] D00: 1 d4 d5: Unusual lines} (4... Bb4 5. f3 c5 6. e3 Nh5 7. Bb5+ Nc6 8. Nge2 Nxf4 9. Nxf4 O-O 10. Bxc6 bxc6 11. Nd3 cxd4 12. Nxb4 dxc3 13. Qxc3 {0-1 (86) Akerman,A (2103)-De Verdier,M (2371) Sweden 2013}) 5. e3 {[%emt 0:07:57]} a6 $146 {[%emt 0:04:41]} (5... c5 6. Nf3 a6 7. Be2 Nc6 8. O-O Be7 9. Ne5 b5 10. Bf3 Rc8 11. a4 b4 12. Ne2 {0-1 (28) Ilic,I (2130)-Samar,R Sydney 1999}) 6. Bd3 {[%emt 0:02:36]} c5 {[%emt 0:09:49]} 7. dxc5 {[%emt 0:01:56]} Bxc5 {[%emt 0:00:15]} 8. Nf3 {[%emt 0:00:36]} Bc6 {[%emt 0:02:27]} 9. Ne5 {[%emt 0:06:33]} Bd6 {[%emt 0:07:18]} 10. O-O {[%emt 0:08:34]} Qc7 {[%emt 0:06:24]} 11. Nxc6 {[%emt 0:01:58]} Nxc6 {[%emt 0:00:19]} 12. Bxd6 {[%emt 0:01:49]} Qxd6 {[%emt 0:00:11]} 13. Qe2 {[%emt 0:02:12]} O-O {[%emt 0:02:21]} 14. Rfd1 {[%emt 0:12:05]} Qb4 {[%emt 0:11:37]} 15. Rab1 {[%emt 0:01:27]} Ne5 {[%emt 0:04:09]} 16. Qd2 {[%emt 0:17:26]} Nxd3 {[%emt 0:00:47]} 17. cxd3 {[%emt 0:01:56]} Rac8 {[%emt 0:11:23]} 18. Ne4 {[%emt 0:09:27]} Qxd2 {[%emt 0:00:17]} 19. Nxf6+ {[%emt 0:00:02]} gxf6 {[%emt 0:00:13]} 20. Rxd2 {[%emt 0:00:01]} f5 {[%emt 0:00:50]} 21. d4 {[%emt 0:02:21]} Rc4 {[%emt 0:00:33]} 22. Kf1 {[%emt 0:00:05]} Rfc8 {[%emt 0:00:31]} 23. Ke2 {[%emt 0:00:45]} Kf8 {[%emt 0:00:45]} 24. h3 {[%emt 0:01:01]} h5 {[%emt 0:00:19]} 25. Kf3 {[%emt 0:00:38]} Kg7 {[%emt 0:01:03]} 26. Rg1 {[%emt 0:04:07]} Rc1 {[%emt 0:00:22]} 27. Rxc1 {[%emt 0:00:05]} Rxc1 {[%emt 0:00:04]} 28. Kf4 {[%emt 0:01:05]} Kf6 {[%emt 0:00:42]} 29. f3 {[%emt 0:01:58]} b5 {[%emt 0:06:09]} 30. b3 {[%emt 0:00:36]} a5 {[%emt 0:00:32]} 31. Rf2 {[%emt 0:01:47]} a4 {[%emt 0:00:50]} 32. bxa4 {[%emt 0:00:01]} bxa4 {[%emt 0:00:01]} 33. g4 {[%emt 0:00:43]} fxg4 {[%emt 0:00:10]} 34. fxg4 {[%emt 0:00:10]} hxg4 {[%emt 0:00:04]} 35. Kxg4+ {[%emt 0:01:12]} Kg6 {[%emt 0:00:06]} 36. h4 {[%emt 0:01:15]} Rg1+ {[%emt 0:01:37]} 37. Kf4 {[%emt 0:03:30]} f6 {[%emt 0:02:14]} 38. Rb2 {[%emt 0:00:51]} Kh5 {[%emt 0:00:09]} 39. Rb4 {[%emt 0:00:51]} Kxh4 {[%emt 0:00:19]} 40. Kf3 {[%emt 0:00:43]} Kg5 {[%emt 0:02:19]} 41. Rxa4 {[%emt 0:00:26]} Kf5 {[%emt 0:00:17]} 42. Ra5 {[%emt 0:00:16]} Rf1+ {[%emt 0:00:44]} 43. Ke2 {[%emt 0:00:02]} Ra1 {[%emt 0:00:17]} 44. Kf3 $11 {[%emt 0:03:10]} 1/2-1/2

[Event "FRA-ch Youth 2017"]
[Site "Belfort"]
[Date "2017.04.17"]
[Round "3"]
[White "Tahay, Alexis"]
[Black "Lever, Erwan"]
[Result "1-0"]
[ECO "B90"]
[WhiteElo "2239"]
[BlackElo "2129"]
[Annotator "NA"]
[PlyCount "61"]
[EventDate "2017.??.??"]
[EventCountry "FRA"]
[SourceTitle "playchess.com"]
[Source "ChessBase"]
[SourceQuality "1"]
[TimeControl "5400+30"]

1. e4 {[%emt 0:02:34]} c5 {[%emt 0:00:07]} 2. Nf3 {[%emt 0:00:06]} d6 {[%emt 0:00:05]} 3. d4 {[%emt 0:00:02]} cxd4 {[%emt 0:00:08]} 4. Nxd4 {[%emt 0:00:03]} Nf6 {[%emt 0:00:06]} 5. Nc3 {[%emt 0:00:02]} a6 {[%emt 0:00:07]} 6. Nb3 {[%emt 0:00:14]} e6 {[%emt 0:02:04] B90: Sicilian Najdorf: Unusual White 6th moves, 6 Be3 Ng4 and 6 Be3 e5} (6... e5 7. Bg5 Be7 8. Bxf6 Bxf6 9. Qd3 Be6 10. O-O-O Be7 11. Nd5 Bxd5 12. Qxd5 Qc7 13. Kb1 O-O 14. Na5 Nc6 15. Nc4 Rad8 {1-0 (50) Grischuk,A (2737)-Nepomniachtchi,I (2767) Doha 2016}) 7. g3 {[%emt 0:02:33]} b5 {[%emt 0:05:31]} 8. Bg2 {[%emt 0:00:15]} Bb7 {[%emt 0:00:06]} 9. a3 {[%emt 0:01:30]} Nbd7 {[%emt 0:03:42]} 10. O-O {[%emt 0:00:30]} Qc7 {[%emt 0:01:11]} 11. f4 $146 {[%emt 0:02:52]} (11. Re1 Be7 12. Bd2 O-O 13. Na2 Rac8 14. Rc1 {1-0 (63) Cruz Pino,A (2094)-Ramirez Medina,V (2196) Las Palmas 2016}) 11... Be7 {[%emt 0:01:08]} 12. Qe2 {[%emt 0:06:41]} O-O {[%emt 0:07:45]} 13. Bd2 {[%emt 0:00:57]} Rac8 {[%emt 0:02:02]} 14. Rae1 {[%emt 0:02:00]} Nb6 {[%emt 0:09:46]} 15. f5 {[%emt 0:05:00]} exf5 {[%emt 0:13:36]} 16. exf5 {[%emt 0:01:07]} Bxg2 {[%emt 0:02:17]} 17. Qxg2 {[%emt 0:04:49]} Nc4 {[%emt 0:02:08]} 18. g4 {[%emt 0:00:57]} Nxd2 {[%emt 0:12:58]} 19. Nxd2 {[%emt 0:01:12]} Rfe8 {[%emt 0:04:48]} 20. g5 {[%emt 0:08:42]} Nd7 {[%emt 0:00:17]} 21. Nd5 {[%emt 0:03:16]} Qc5+ {[%emt 0:00:55]} 22. Kh1 {[%emt 0:14:01]} Bf8 {[%emt 0:04:22]} (22... Bxg5 $11 23. Rxe8+ Rxe8) 23. c3 {[%emt 0:03:10]} Re5 {[%emt 0:03:35]} 24. Rxe5 {[%emt 0:01:34]} dxe5 {[%emt 0:00:46]} 25. Rd1 {[%emt 0:03:20]} Nb6 {[%emt 0:01:24]} 26. Nb3 {[%emt 0:02:40]} Qc6 {[%emt 0:00:47]} 27. Na5 {[%emt 0:00:25]} Qd7 $18 {[%emt 0:01:47]} ({Inferior is} 27... Qc5 28. b4 Qxd5 29. Rxd5) (27... Qe8 $142 28. Nxb6 Rd8) 28. Nf6+ {[%emt 0:00:47]} gxf6 {[%emt 0:00:05]} 29. Rxd7 {[%emt 0:00:40]} Nxd7 {[%emt 0:00:06]} 30. gxf6+ {[%emt 0:00:43]} Kh8 {[%emt 0:00:07]} 31. Qb7 {[%emt 0:00:28]} 1-0

[Event "FRA-ch Youth 2017"]
[Site "Belfort"]
[Date "2017.04.17"]
[Round "3"]
[White "Cohen Revivo, Shoham"]
[Black "Decuigniere, Tom"]
[Result "1/2-1/2"]
[ECO "E21"]
[WhiteElo "2221"]
[BlackElo "1909"]
[Annotator "NA"]
[PlyCount "46"]
[EventDate "2017.??.??"]
[EventCountry "FRA"]
[SourceTitle "playchess.com"]
[Source "ChessBase"]
[SourceQuality "1"]
[TimeControl "5400+30"]

1. d4 {[%emt 0:00:00]} Nf6 {[%emt 0:00:17]} 2. c4 {[%emt 0:00:02]} e6 {[%emt 0:00:22]} 3. Nf3 {[%emt 0:00:41]} Bb4+ {[%emt 0:02:22]} 4. Nc3 {[%emt 0:00:48]} c5 {[%emt 0:07:35]} 5. e3 {[%emt 0:00:35]} Bxc3+ {[%emt 0:05:56] LiveBook: 34 Games} 6. bxc3 {[%emt 0:00:17]} b6 {[%emt 0:06:42]} 7. Bd3 {[%emt 0:00:13]} Bb7 {[%emt 0:01:52]} 8. O-O {[%emt 0:00:13]} O-O {[%emt 0:00:52]} 9. Rb1 {[%emt 0:03:38] E43: Nimzo-Indian: Rubinstein: 4...b6} (9. Nd2 Nc6 10. Nb3 Ba6 11. Re1 Rc8 12. a4 d6 13. Bf1 Re8 14. e4 cxd4 15. cxd4 e5 16. d5 Nb8 17. Nd2 {½-½ (44) Aleksandrov,A (2595)-Vitiugov,N (2742) St Petersburg 2014}) 9... d6 {[%emt 0:04:13]} 10. Re1 {[%emt 0:04:14]} (10. Qe2 Ne4 11. Bb2 f5 12. Nd2 Nd7 13. Bxe4 fxe4 14. Qg4 Rf6 15. Nxe4 Rg6 16. Qf4 e5 {0-1 (55) Torres Jimenez,L (2007)-Velazquez Montada,Y (1977) Havana 2010}) 10... Ne4 {[%emt 0:10:49]} 11. Qc2 {[%emt 0:00:26]} f5 {[%emt 0:00:21]} 12. Nd2 {[%emt 0:01:11]} Qh4 {[%emt 0:04:40]} 13. Rf1 {[%emt 0:03:30]} Nxd2 {[%emt 0:01:32]} 14. Qxd2 {[%emt 0:08:52]} Bxg2 {[%emt 0:00:57]} 15. Kxg2 $2 {[%emt 0:01:41]} (15. f3 Bxf1 16. Kxf1) 15... Qg4+ {[%emt 0:00:08]} 16. Kh1 {[%emt 0:00:04]} Qf3+ {[%emt 0:00:11]} 17. Kg1 {[%emt 0:00:07]} Qg4+ {[%emt 0:10:14]} 18. Kh1 {[%emt 0:00:06]} Qf3+ {[%emt 0:00:30]} 19. Kg1 {[%emt 0:00:04]} Qg4+ {[%emt 0:00:27]} 20. Kh1 {[%emt 0:00:08]} Qf3+ $11 {[%emt 0:00:08]} 21. Kg1 Rf6 22. Rd1 Qh3 23. Bf1 Rg6+ {Bd3} 1/2-1/2

[Event "FRA-ch Youth 2017"]
[Site "Belfort"]
[Date "2017.04.17"]
[Round "3"]
[White "Bouvet, Florian"]
[Black "Baudry, Remi"]
[Result "1/2-1/2"]
[ECO "D02"]
[WhiteElo "2183"]
[BlackElo "1940"]
[Annotator "NA"]
[PlyCount "84"]
[EventDate "2017.??.??"]
[EventCountry "FRA"]
[SourceTitle "playchess.com"]
[Source "ChessBase"]
[SourceQuality "1"]
[TimeControl "5400+30"]

1. Nf3 {[%emt 0:00:00]} d5 {[%emt 0:00:27]} 2. d4 {[%emt 0:01:00]} Nf6 {[%emt 0:01:25]} 3. g3 {[%emt 0:00:40]} c5 {[%emt 0:01:40]} 4. Bg2 {[%emt 0:00:21]} Nc6 {[%emt 0:02:57]} 5. O-O {[%emt 0:00:20]} Bg4 {[%emt 0:01:38]} 6. Ne5 {[%emt 0:06:42]} Bf5 {[%emt 0:04:28] D02: 1 d4 d5 2 Nf3 sidelines, including 2...Nf6 3 g3 and 2...Nf6 3 Bf4} (6... cxd4 7. Nxg4 Nxg4 8. e3 Nf6 9. exd4 e6 10. c3 Be7 11. Qb3 a6 12. Bf4 b5 13. Nd2 O-O 14. Rfc1 Bd6 15. Bxd6 Qxd6 16. Qd1 Rfb8 17. Nb3 a5 18. a4 bxa4 19. Rxa4 {0-1 (44) Neef,M (2443)-Novikov,S (2513) Marianske Lazne 2017}) 7. Nxc6 {[%emt 0:05:34]} bxc6 {[%emt 0:00:05]} 8. c4 {[%emt 0:01:15]} e6 {[%emt 0:05:06]} 9. Nc3 {[%emt 0:06:04]} Rb8 {[%emt 0:09:06]} 10. e3 $146 {[%emt 0:15:56]} (10. cxd5 cxd5 11. Qa4+ Qd7 12. Qxd7+ Nxd7 13. dxc5 Nxc5 14. b3 {0-1 (62) Sjol,H (1880)-Andersen,R (2078) Helsingor 2011}) 10... Qd7 {[%emt 0:05:35]} 11. Qe2 {[%emt 0:05:08]} Be7 {[%emt 0:05:54]} 12. Rd1 {[%emt 0:03:52]} O-O {[%emt 0:06:56]} 13. b3 {[%emt 0:03:43]} Rfc8 {[%emt 0:06:33]} 14. dxc5 {[%emt 0:07:16]} Bxc5 {[%emt 0:00:47]} 15. Na4 {[%emt 0:07:30]} Bd6 {[%emt 0:02:37]} 16. Bb2 {[%emt 0:01:10]} Ne4 {[%emt 0:02:03]} 17. Rac1 {[%emt 0:05:39]} Qe7 {[%emt 0:02:04]} 18. cxd5 {[%emt 0:04:25]} cxd5 {[%emt 0:00:45]} 19. Qa6 {[%emt 0:00:54]} Nc5 {[%emt 0:15:11]} 20. Nxc5 {[%emt 0:00:33]} Rxc5 {[%emt 0:00:42]} 21. Bd4 {[%emt 0:02:28]} Rc7 {[%emt 0:03:10]} 22. Bb2 {[%emt 0:08:28]} Rb6 {[%emt 0:01:02]} 23. Qa4 {[%emt 0:01:23]} Rxc1 {[%emt 0:02:13]} 24. Rxc1 {[%emt 0:00:22]} h6 {[%emt 0:02:41]} 25. Rc8+ {[%emt 0:01:49]} Kh7 {[%emt 0:00:01]} 26. Ra8 {[%emt 0:05:21]} Rb7 {[%emt 0:01:26]} 27. e4 {[%emt 0:02:42]} dxe4 {[%emt 0:09:03]} 28. Bxe4 {[%emt 0:00:06]} Rc7 {[%emt 0:00:10]} 29. Qd4 {[%emt 0:01:22]} f6 {[%emt 0:03:09]} 30. Qd3 {[%emt 0:00:04]} Bxe4 {[%emt 0:01:23]} 31. Qxe4+ {[%emt 0:00:04]} g6 {[%emt 0:00:06]} 32. Kg2 {[%emt 0:01:22]} Bc5 {[%emt 0:01:41]} 33. Qf4 {[%emt 0:01:22]} Kg7 {[%emt 0:00:22]} 34. Bc1 {[%emt 0:00:32]} g5 {[%emt 0:00:08]} 35. Qf3 {[%emt 0:00:17]} Bd4 {[%emt 0:01:14]} 36. Qd1 $2 {[%emt 0:01:27] [#]} (36. Be3 $11 Rc3 37. Rb8 Bxe3 38. Rb7) 36... Qc5 $17 {[%emt 0:00:42]} (36... Rxc1 $1 $19 {[%mdl 512]} 37. Qxc1 Qb7+ 38. f3 Qxa8 39. Qc7+ Kg8) 37. Rd8 {[%emt 0:00:26]} e5 {[%emt 0:02:29]} 38. Be3 {[%emt 0:00:34]} Bxe3 {[%emt 0:01:04]} 39. Rd7+ {[%emt 0:00:05]} Rxd7 {[%emt 0:01:04]} 40. Qxd7+ {[%emt 0:00:05]} Kg6 {[%emt 0:00:10]} 41. Qd3+ {[%emt 0:00:10]} f5 {[%emt 0:00:27]} 42. Qxe3 {[%emt 0:01:40]} Qc6+ {[%emt 0:00:05]} 1/2-1/2

[Event "FRA-ch Youth 2017"]
[Site "Belfort"]
[Date "2017.04.17"]
[Round "3"]
[White "Tomasi, Albert"]
[Black "Raclot, Leo"]
[Result "1-0"]
[ECO "B01"]
[WhiteElo "2176"]
[BlackElo "1887"]
[Annotator "NA"]
[PlyCount "57"]
[EventDate "2017.??.??"]
[EventCountry "FRA"]
[SourceTitle "playchess.com"]
[Source "ChessBase"]
[SourceQuality "1"]
[TimeControl "5400+30"]

1. e4 {[%emt 0:00:00]} d5 {[%emt 0:00:08]} 2. exd5 {[%emt 0:00:00]} Nf6 {[%emt 0:00:06]} 3. d4 {[%emt 0:00:10]} Nxd5 {[%emt 0:00:17]} 4. Nf3 {[%emt 0:02:52]} g6 {[%emt 0:00:32]} 5. c4 {[%emt 0:03:09]} Nb6 {[%emt 0:00:09]} 6. Be2 {[%emt 0:02:17]} Bg7 {[%emt 0:00:20]} 7. O-O {[%emt 0:02:44]} O-O {[%emt 0:00:20]} 8. Be3 {[%emt 0:03:53]} Nc6 {[%emt 0:01:09]} 9. h3 {[%emt 0:05:42]} e5 {[%emt 0:02:51]} 10. d5 {[%emt 0:02:09]} Ne7 11. Nc3 {[%emt 0:01:59] LiveBook: 53 Games} Nf5 {[%emt 0:10:04]} 12. Bc5 {[%emt 0:01:16] B01: Scandinavian Defence} (12. Bg5 f6 13. Bc1 c5 14. dxc6 bxc6 15. b3 Qe7 16. Ne4 Rd8 17. Qc2 Be6 18. a4 c5 19. Ba3 Rac8 20. Rad1 Nd7 21. Rfe1 {1-0 (39) Nepomniachtchi,I (2729)-Smagin,S (2551) Olginka 2011}) 12... Nd6 $146 {[%emt 0:03:17]} (12... Re8 13. Rc1 e4 14. Nd2 Qh4 15. Bg4 h5 16. Bxf5 Bxf5 17. Be3 Nd7 18. Nb5 Bxh3 19. gxh3 Qxh3 20. Bf4 Bxb2 {1-0 (30) Mas,H (2372)-Nadanian,A (2436) Singapore 2007}) 13. Ba3 {[%emt 0:08:35]} Nbxc4 {[%emt 0:11:23]} 14. Bxc4 {[%emt 0:00:09]} Nxc4 {[%emt 0:00:10]} 15. Bxf8 {[%emt 0:00:07]} Qxf8 {[%emt 0:01:31]} 16. Qe2 {[%emt 0:03:40]} e4 {[%emt 0:08:20]} 17. Nxe4 {[%emt 0:03:42]} Nxb2 {[%emt 0:02:57]} 18. Rac1 {[%emt 0:03:50]} Bf5 {[%emt 0:08:34]} 19. Rfe1 {[%emt 0:04:36]} Qd8 {[%emt 0:06:16]} 20. g4 {[%emt 0:10:55]} Bxe4 {[%emt 0:08:23]} 21. Qxe4 {[%emt 0:00:08]} Qd6 {[%emt 0:00:17]} 22. Nd4 {[%emt 0:13:39]} Qb6 {[%emt 0:05:44]} 23. Nb3 {[%emt 0:02:52]} Rd8 {[%emt 0:05:44]} 24. Rc2 {[%emt 0:05:13]} a5 $18 {[%emt 0:05:35]} 25. Qe7 {[%emt 0:02:44]} c6 {[%emt 0:03:11]} 26. dxc6 {[%emt 0:00:36]} Rc8 {[%emt 0:03:14]} 27. Qe8+ {[%emt 0:02:04]} Rxe8 28. Rxe8+ {[%emt 0:00:07]} Bf8 {[%emt 0:00:58]} 29. c7 {[%emt 0:00:05]} 1-0